bitfinex/quotes_BTCUSD_20230113
["timestamp","ask_amount","ask_price","bid_price","bid_amount"]
[1673632927385,0.00712928,19290.0,19285.0,0.227824]
[1673632927612,0.00712928,19290.0,19286.0,0.324468]
[1673632927857,0.01212928,19291.0,19287.0,0.227803]
[1673632928096,0.22243422,19291.0,19285.0,1.518628]
[1673632928339,0.046,19288.0,19285.0,0.9001]
[1673632928581,0.21030494,19290.0,19285.0,0.9001]
[1673632928582,0.21030494,19287.0,19285.0,0.9001]
[1673632928821,0.5302327,19290.0,19286.0,0.139]
[1673632929061,0.01212928,19291.0,19286.0,0.84626]
[1673632929298,0.004,19288.0,19286.0,1.14463608]
[1673632929526,0.01212928,19291.0,19287.0,0.324508]
[1673632929758,0.01212928,19291.0,19288.0,0.227731]
[1673632930031,0.004,19290.0,19289.0,0.324469]
[1673632930248,0.004,19290.0,19289.0,0.474669]
[1673632930956,0.01212928,19291.0,19290.0,0.746109]
[1673632931179,0.01212928,19291.0,19290.0,0.895309]
[1673632931535,0.01212928,19291.0,19290.0,0.995309]
[1673632931644,0.01212928,19292.0,19291.0,0.1]
[1673632931890,0.01212928,19292.0,19289.0,1.436707]
[1673632932142,0.22243422,19292.0,19289.0,1.436707]
[1673632932390,0.01212928,19292.0,19290.0,0.65219047]
[1673632932642,0.00212928,19292.0,19290.0,0.51119047]
[1673632932894,0.00212928,19292.0,19289.0,1.576707]
[1673632933134,0.00212928,19292.0,19291.0,0.1502]
[1673632933378,0.00212928,19292.0,19291.0,0.89621]
[1673632933645,0.00212928,19292.0,19290.0,1.07314244]
[1673632933883,0.00212928,19292.0,19291.0,0.00032212]
[1673632934127,0.00212928,19292.0,19290.0,0.518395]
[1673632934370,0.00212928,19292.0,19289.0,1.436718]
[1673632934639,0.00212928,19292.0,19290.0,0.70797432]
[1673632934882,0.00212928,19292.0,19290.0,0.84897432]
[1673632935136,0.00212928,19292.0,19290.0,0.70797432]
[1673632935619,0.00212928,19292.0,19291.0,0.64544089]
[1673632936119,0.00212928,19292.0,19291.0,0.424508]
[1673632936375,0.00212928,19292.0,19291.0,1.09536802]
[1673632937115,0.00212928,19292.0,19291.0,0.77086002]
[1673632937621,0.00212928,19292.0,19291.0,1.09536802]
[1673632937873,0.00212928,19292.0,19291.0,1.20736802]
[1673632938117,0.00212928,19292.0,19291.0,1.35806802]
[1673632938616,0.00212928,19292.0,19291.0,0.93356002]
[1673632938867,0.00212928,19292.0,19291.0,1.25806802]
[1673632939121,0.00212928,19292.0,19291.0,1.35806802]
[1673632942380,0.00212928,19292.0,19291.0,1.25806802]
[1673632942670,0.00212928,19292.0,19291.0,0.587208]
[1673632942913,0.00212928,19292.0,19291.0,1.36547937]
[1673632943404,0.00212928,19292.0,19291.0,1.26547937]
[1673632943897,0.00212928,19292.0,19291.0,1.36547937]
[1673632944644,0.00212928,19292.0,19291.0,1.62547937]
[1673632945635,0.00212928,19292.0,19291.0,1.52547937]
[1673632945884,0.00212928,19292.0,19291.0,1.62547937]
[1673632946129,0.00212928,19292.0,19291.0,1.52547937]
[1673632946384,0.21243422,19292.0,19291.0,0.847208]
[1673632946633,0.00212928,19292.0,19291.0,0.372]
[1673632947393,0.11359928,19292.0,19291.0,0.372]
[1673632948400,0.11359928,19292.0,19291.0,0.26]
[1673632948646,0.12359928,19292.0,19291.0,0.265]
[1673632948875,0.00212928,19292.0,19291.0,0.26]
[1673632949150,0.01212928,19292.0,19291.0,0.26]
[1673632949652,0.12359928,19292.0,19291.0,0.26]
[1673632950145,0.11359928,19292.0,19291.0,0.26]
[1673632950397,1.81918592,19292.0,19291.0,0.05144447]
[1673632950639,1.61738098,19292.0,19291.0,0.05144447]
[1673632950885,1.71738098,19292.0,19291.0,0.00844447]
[1673632951134,2.02327011,19292.0,19291.0,0.00844447]
[1673632951634,1.71738098,19292.0,19291.0,0.00844447]
[1673632951894,1.72638098,19292.0,19291.0,0.00844447]
[1673632952148,1.71738098,19292.0,19291.0,0.00844447]
[1673632952894,1.70888098,19292.0,19291.0,0.00844447]
[1673632953384,1.70888098,19292.0,19291.0,0.01944447]
[1673632953385,1.93622998,19292.0,19291.0,0.01944447]
[1673632953662,2.23622998,19292.0,19291.0,0.01944447]
[1673632954158,2.53675538,19292.0,19291.0,0.01944447]
[1673632954406,3.5823801,19292.0,19291.0,0.01944447]
[1673632954897,3.2818547,19292.0,19291.0,0.01944447]
[1673632955164,3.28183113,19292.0,19291.0,0.01944447]
[1673632955429,1.15571098,19292.0,19291.0,0.01944447]
[1673632955715,0.01112928,19292.0,19291.0,0.01944447]
[1673632956702,0.53736198,19292.0,19291.0,0.01944447]
[1673632956963,1.30470582,19292.0,19291.0,0.01944447]
[1673632957197,1.09440088,19292.0,19291.0,0.01944447]
[1673632957692,1.19440088,19292.0,19291.0,0.01944447]
[1673632957939,1.71274988,19292.0,19291.0,0.01944447]
[1673632958179,1.56718098,19292.0,19291.0,0.01944447]
[1673632959673,2.08552998,19292.0,19291.0,0.01944447]
[1673632960137,2.09402998,19292.0,19291.0,0.01944447]
[1673632960881,1.05571098,19292.0,19291.0,0.01944447]
[1673632961398,0.53736198,19292.0,19291.0,0.01944447]
[1673632961653,0.01112928,19292.0,19291.0,0.01944447]
[1673632965565,0.12259928,19292.0,19291.0,0.01944447]
[1673632966298,0.11670804,19292.0,19291.0,0.01944447]
[1673632966545,0.21670804,19292.0,19291.0,0.01944447]
[1673632967050,1.25367612,19292.0,19291.0,0.01944447]
[1673632967298,1.15367612,19292.0,19291.0,0.01944447]
[1673632968785,1.55367612,19292.0,19291.0,0.01944447]
[1673632969290,2.07202512,19292.0,19291.0,0.01944447]
[1673632969530,1.77202512,19292.0,19291.0,0.01944447]
[1673632969773,1.67202512,19292.0,19291.0,0.01944447]
[1673632970033,1.77202512,19292.0,19291.0,0.01944447]
[1673632970283,1.25367612,19292.0,19291.0,0.01944447]
[1673632970535,1.77202512,19292.0,19291.0,0.01944447]
[1673632971042,2.07202512,19292.0,19291.0,0.01944447]
[1673632971540,1.67202512,19292.0,19291.0,0.01944447]
[1673632971785,1.15367612,19292.0,19291.0,0.17265466]
[1673632972037,1.25367612,19292.0,19291.0,0.17265466]
[1673632972778,1.15367612,19292.0,19291.0,0.17265466]
[1673632973812,0.92060004,19294.0,19291.0,0.17265466]
[1673632974055,0.8262327,19293.0,19291.0,0.17265466]
[1673632974795,0.8262327,19293.0,19291.0,0.01944447]
[1673632975041,0.5262327,19293.0,19291.0,0.16165466]
[1673632975288,0.5272327,19293.0,19291.0,0.17265466]
[1673632975547,0.001,19293.0,19292.0,0.89587607]
[1673632975789,0.001,19293.0,19292.0,1.51970493]
[1673632976043,0.001,19293.0,19292.0,1.73562744]
[1673632976538,0.01269704,19294.0,19292.0,1.63565139]
[1673632976785,0.001,19293.0,19292.0,1.43070493]
[1673632977027,0.001,19293.0,19292.0,1.74774056]
[1673632977522,0.01269704,19294.0,19293.0,0.1]
[1673632977768,0.01369704,19294.0,19293.0,1.73816066]
[1673632978017,0.01269704,19294.0,19293.0,1.58436694]
[1673632978266,0.01269704,19294.0,19293.0,1.89071923]
[1673632978510,0.01269704,19294.0,19293.0,1.79071923]
[1673632978756,0.01269704,19294.0,19293.0,0.518322]
[1673632979012,0.01269704,19294.0,19293.0,0.67210797]
[1673632979261,0.01269704,19294.0,19293.0,1.19048997]
[1673632979516,0.01269704,19294.0,19293.0,1.58439224]
[1673632979758,0.01369704,19294.0,19293.0,1.49539224]
[1673632980006,0.01369704,19294.0,19293.0,1.64918832]
[1673632980246,0.01369704,19294.0,19293.0,1.80174453]
[1673632981004,0.01369704,19294.0,19293.0,2.05450063]
[1673632981513,0.01369704,19294.0,19293.0,2.57282263]
[1673632981795,0.01369704,19294.0,19293.0,1.95450063]
[1673632982042,0.01369704,19294.0,19293.0,1.80175865]
[1673632983612,0.01369704,19294.0,19293.0,2.32008065]
[1673632983869,0.01369704,19294.0,19293.0,2.57282263]
[1673632984152,0.00584256,19294.0,19293.0,2.75853338]
[1673632984374,0.00584256,19294.0,19293.0,4.06637554]
[1673632984617,0.00584256,19294.0,19293.0,4.28064769]
[1673632985122,0.00484256,19294.0,19293.0,4.2690886]
[1673632985378,0.00484256,19294.0,19293.0,4.26877567]
[1673632985625,0.01292831,19295.0,19294.0,0.10328935]
[1673632985891,0.01292831,19295.0,19294.0,2.75035841]
[1673632986136,0.01292831,19295.0,19294.0,2.81253692]
[1673632986385,0.01292831,19295.0,19294.0,3.17424231]
[1673632986634,0.01292831,19295.0,19294.0,2.94670331]
[1673632986889,0.01292831,19295.0,19294.0,2.12385495]
[1673632987135,0.01292831,19295.0,19294.0,2.26385495]
[1673632987390,0.01292831,19295.0,19294.0,2.26391495]
[1673632987643,0.01292831,19295.0,19294.0,2.58842295]
[1673632987890,0.01292831,19295.0,19294.0,3.98069692]
[1673632988395,0.01292831,19295.0,19294.0,3.45360076]
[1673632988639,0.01292831,19295.0,19294.0,3.61019037]
[1673632988888,0.01292831,19295.0,19294.0,4.49899192]
[1673632989137,0.01292831,19295.0,19294.0,3.97189576]
[1673632989387,0.01292831,19295.0,19294.0,3.34029164]
[1673632989638,0.01292831,19295.0,19294.0,3.53948177]
[1673632989891,0.01292831,19295.0,19294.0,3.90118716]
[1673632991624,0.01292831,19295.0,19294.0,2.87914867]
[1673632991881,0.01292831,19295.0,19294.0,3.57852646]
[1673632992134,0.01292831,19295.0,19294.0,3.11738349]
[1673632992387,0.01292831,19295.0,19294.0,2.97858625]
[1673632992632,0.01292831,19295.0,19294.0,3.05323944]
[1673632992878,0.01292831,19295.0,19294.0,4.12494688]
[1673632992879,0.00271335,19295.0,19294.0,4.12494688]
[1673632993129,0.01293965,19298.0,19294.0,4.12494688]
[1673632993130,0.01293965,19298.0,19295.0,0.1]
[1673632993373,0.01293965,19298.0,19297.0,0.27882909]
[1673632993619,0.01177576,19300.0,19297.0,2.38194446]
[1673632993862,0.01177576,19300.0,19299.0,0.47261248]
[1673632994113,0.005077,19300.0,19299.0,1.60324299]
[1673632994362,0.005077,19300.0,19299.0,2.06116435]
[1673632994615,0.005077,19300.0,19299.0,2.44417705]
[1673632995110,0.005077,19300.0,19299.0,1.18956248]
[1673632995366,0.005077,19300.0,19299.0,1.036322]
[1673632995852,0.005077,19300.0,19299.0,1.343322]
[1673632996355,0.005077,19300.0,19299.0,2.29121138]
[1673632996604,0.646,19310.0,19300.0,0.64340792]
[1673632996605,0.85874,19310.0,19300.0,0.64340792]
[1673632996849,2.1362203,19310.0,19303.0,1.036108]
[1673632997122,2.1362203,19310.0,19303.0,1.65034044]
[1673632997123,1.03624963,19309.0,19303.0,1.65034044]
[1673632997363,1.03624963,19309.0,19304.0,0.1]
[1673632997627,0.1,19310.0,19304.0,0.518005]
[1673632997628,0.1894,19310.0,19304.0,0.518005]
[1673632997873,0.39970494,19310.0,19304.0,0.518005]
[1673632998118,0.646,19312.0,19306.0,0.0893]
[1673632998372,0.1,19311.0,19306.0,1.035916]
[1673632998868,0.5262327,19312.0,19306.0,1.124916]
[1673632999118,0.5262327,19312.0,19307.0,0.62484404]
[1673632999119,0.73653764,19312.0,19307.0,0.62484404]
[1673632999367,0.5262327,19312.0,19308.0,0.51791]
[1673632999849,1.3653,19314.0,19308.0,0.51791]
[1673633000098,0.5262327,19313.0,19308.0,1.04314244]
[1673633000343,0.73653764,19313.0,19308.0,0.51791]
[1673633000591,0.0896,19315.0,19308.0,1.04314244]
[1673633000836,0.0896,19315.0,19309.0,0.61443244]
[1673633000837,0.73653764,19315.0,19309.0,0.61443244]
[1673633001087,0.5262327,19315.0,19310.0,1.56092044]
[1673633001329,0.10318352,19316.0,19310.0,1.56092044]
[1673633001330,0.01368352,19316.0,19312.0,0.0896]
[1673633001576,0.01368352,19316.0,19312.0,0.607397]
[1673633001848,0.01368352,19316.0,19313.0,0.51051084]
[1673633002095,0.01368352,19316.0,19313.0,1.12827784]
[1673633002604,0.01368352,19316.0,19313.0,1.11787784]
[1673633002853,0.01368352,19316.0,19312.0,0.517797]
[1673633002854,0.75022116,19316.0,19312.0,0.517797]
[1673633003091,0.81155976,19315.0,19310.0,0.518044]
[1673633003338,0.01368352,19316.0,19311.0,0.54198041]
[1673633003585,0.22398846,19316.0,19313.0,0.047]
[1673633003852,0.8262327,19315.0,19313.0,0.047]
[1673633004091,0.1,19314.0,19313.0,0.047]
[1673633004349,0.1,19314.0,19310.0,0.517854]
[1673633004607,0.3896,19315.0,19312.0,0.68345142]
[1673633004867,0.01368352,19316.0,19313.0,0.65993478]
[1673633005139,0.01368352,19316.0,19313.0,1.18922637]
[1673633005635,0.01368352,19316.0,19313.0,1.18928637]
[1673633005884,0.01368352,19316.0,19314.0,0.0889]
[1673633006129,0.01368352,19316.0,19315.0,1.03597054]
[1673633007144,0.01368352,19316.0,19315.0,1.77972777]
[1673633007390,0.01368352,19316.0,19315.0,1.31467054]
[1673633007637,0.01368352,19316.0,19315.0,1.63917854]
[1673633007891,0.01368352,19316.0,19315.0,2.09100692]
[1673633008133,0.01368352,19316.0,19315.0,1.68617854]
[1673633008381,0.01368352,19316.0,19315.0,1.63917854]
[1673633008623,0.00577964,19316.0,19315.0,1.77917854]
[1673633008867,0.00577964,19316.0,19315.0,2.23338762]
[1673633009124,0.00577964,19316.0,19315.0,2.33338762]
[1673633009379,0.00577964,19316.0,19315.0,2.23338762]
[1673633009618,0.00577964,19316.0,19315.0,0.14050654]
[1673633010163,0.00577964,19316.0,19315.0,0.65823854]
[1673633010402,0.00577964,19316.0,19315.0,1.77439454]
[1673633010644,0.00577964,19316.0,19315.0,1.77445454]
[1673633010897,0.32755458,19316.0,19315.0,0.14006]
[1673633011140,0.32755458,19316.0,19315.0,0.05206]
[1673633011141,0.11724964,19316.0,19315.0,0.05206]
[1673633011629,0.41724964,19316.0,19315.0,0.05206]
[1673633011878,0.00577964,19316.0,19315.0,6e-05]
[1673633012370,0.01477964,19316.0,19315.0,6e-05]
[1673633012609,0.00577964,19316.0,19314.0,0.517754]
[1673633012869,0.01477964,19316.0,19315.0,0.011]
[1673633013369,0.11477964,19316.0,19315.0,0.011]
[1673633013869,0.1,19315.0,19312.0,1.06571834]
[1673633014119,0.1,19315.0,19312.0,0.54790934]
[1673633014120,0.31030494,19315.0,19312.0,0.54790934]
[1673633014416,0.31030494,19315.0,19312.0,0.03011934]
[1673633014417,0.0887,19313.0,19312.0,0.03011934]
[1673633015160,0.1887,19313.0,19312.0,0.06311934]
[1673633015425,0.4887,19313.0,19312.0,0.03011934]
[1673633015674,0.3247,19313.0,19312.0,0.03411934]
[1673633015938,0.6247,19313.0,19312.0,0.03411934]
[1673633016197,0.436,19313.0,19312.0,0.03411934]
[1673633016440,0.236,19313.0,19312.0,0.03411934]
[1673633016694,0.136,19313.0,19312.0,0.63991026]
[1673633016951,0.04992009,19313.0,19312.0,0.63991026]
[1673633018657,0.04992009,19313.0,19312.0,0.03411934]
[1673633018902,0.04992009,19313.0,19312.0,0.68387216]
[1673633019181,0.04992009,19313.0,19312.0,0.55193134]
[1673633019424,0.04992009,19313.0,19312.0,1.15345428]
[1673633019673,0.04992009,19313.0,19312.0,1.06974334]
[1673633019920,0.02201056,19313.0,19312.0,2.09850263]
[1673633020174,0.02201056,19313.0,19312.0,1.58365134]
[1673633020949,0.00577964,19316.0,19313.0,0.01464273]
[1673633021188,0.00577964,19316.0,19314.0,1.780202]
[1673633021436,0.00577964,19316.0,19315.0,1.216351]
[1673633021696,0.00577964,19316.0,19315.0,1.734083]
[1673633022187,0.00577964,19316.0,19315.0,1.822983]
[1673633022437,0.00677964,19316.0,19315.0,1.822983]
[1673633022749,0.00677964,19316.0,19315.0,2.55023332]
[1673633023016,0.00677964,19316.0,19315.0,2.54910914]
[1673633023245,0.00677964,19316.0,19315.0,2.711483]
[1673633023500,0.01466468,19319.0,19315.0,2.733183]
[1673633023757,0.22496962,19319.0,19316.0,0.3165]
[1673633023999,0.01466468,19319.0,19317.0,1.359768]
[1673633024260,0.01466468,19319.0,19318.0,0.226875]
[1673633024261,0.22496962,19319.0,19318.0,0.226875]
[1673633024511,0.56339434,19319.0,19315.0,0.139]
[1673633024790,0.56339434,19319.0,19313.0,0.01464273]
[1673633024791,1.12593764,19318.0,19313.0,0.01464273]
[1673633025051,1.12593764,19318.0,19313.0,0.01483273]
[1673633025052,0.0892,19316.0,19313.0,0.01483273]
[1673633025319,0.29980494,19315.0,19313.0,0.01483273]
[1673633025606,0.0894,19318.0,19314.0,0.5225257]
[1673633025814,0.85103468,19319.0,19314.0,0.5225257]
[1673633025815,0.51833468,19319.0,19314.0,0.5225257]
[1673633026062,0.4891,19318.0,19313.0,0.01483273]
[1673633026303,0.21030494,19317.0,19313.0,0.01483273]
[1673633026547,0.0894,19315.0,19313.0,0.01483273]
[1673633026788,0.29970494,19315.0,19313.0,0.01483273]
[1673633027038,0.1894,19315.0,19314.0,0.009]
[1673633027292,0.1894,19315.0,19313.0,0.01464273]
[1673633027777,0.0894,19315.0,19313.0,0.01464273]
[1673633028022,0.0894,19315.0,19313.0,0.15564273]
[1673633028768,0.1894,19315.0,19313.0,0.15564273]
[1673633029029,0.1894,19315.0,19313.0,0.01464273]
[1673633029270,0.1894,19315.0,19313.0,0.05364273]
[1673633029513,0.1896,19316.0,19313.0,0.05364273]
[1673633030505,0.1896,19316.0,19313.0,0.57142473]
[1673633030753,0.0896,19316.0,19313.0,1.21843849]
[1673633030999,0.10426468,19319.0,19316.0,0.09059803]
[1673633031247,0.10426468,19319.0,19317.0,0.226849]
[1673633031490,0.01466468,19319.0,19317.0,0.517676]
[1673633032761,0.01466468,19319.0,19317.0,0.521676]
[1673633033539,0.01466468,19319.0,19317.0,1.035354]
[1673633033805,0.01466468,19319.0,19317.0,1.176354]
[1673633034056,0.01466468,19319.0,19317.0,1.035354]
[1673633035020,0.01466468,19319.0,19317.0,0.517678]
[1673633035270,0.01466468,19319.0,19317.0,0.657678]
[1673633035530,0.01466468,19319.0,19317.0,0.67078145]
[1673633035783,0.01466468,19319.0,19317.0,0.658678]
[1673633036028,0.11466468,19319.0,19317.0,0.81178145]
[1673633036520,0.11466468,19319.0,19317.0,0.141]
[1673633036521,0.63589738,19319.0,19317.0,0.141]
[1673633036825,0.4887,19318.0,19317.0,0.141]
[1673633037126,1.1129327,19318.0,19317.0,0.141]
[1673633037367,0.9347327,19318.0,19317.0,0.141]
[1673633037630,0.9347327,19318.0,19316.0,0.09059803]
[1673633037631,0.6347327,19318.0,19316.0,0.47335666]
[1673633037856,0.12113468,19319.0,19318.0,0.38471795]
[1673633038099,0.29993468,19319.0,19318.0,0.38471795]
[1673633038345,0.67886815,19319.0,19318.0,0.38471795]
[1673633038856,0.59993468,19319.0,19318.0,0.38471795]
[1673633039104,0.60793468,19319.0,19318.0,0.39571795]
[1673633039872,0.71643468,19319.0,19318.0,0.39571795]
[1673633040609,0.71643468,19319.0,19318.0,0.39577795]
[1673633041316,0.80701815,19319.0,19318.0,0.39577795]
[1673633042319,0.71643468,19319.0,19318.0,0.39577795]
[1673633042835,2.36395811,19319.0,19318.0,6e-05]
[1673633043084,2.72904324,19319.0,19318.0,6e-05]
[1673633043579,2.87613324,19319.0,19318.0,6e-05]
[1673633044078,2.81585317,19319.0,19318.0,6e-05]
[1673633044325,3.40115649,19319.0,19318.0,6e-05]
[1673633046650,0.1,19318.0,19316.0,0.09059803]
[1673633046945,1.42248428,19317.0,19316.0,0.09059803]
[1673633047173,1.42248428,19317.0,19309.0,0.23038209]
[1673633047174,0.5446,19315.0,19309.0,0.23038209]
[1673633047412,0.8548,19313.0,19308.0,0.00545542]
[1673633047673,1.03605991,19312.0,19308.0,0.00564542]
[1673633047920,0.0894,19309.0,19308.0,0.26564542]
[1673633048167,0.29970494,19309.0,19308.0,0.26564542]
[1673633048407,0.1,19311.0,19308.0,1.20747131]
[1673633048649,0.7967,19314.0,19308.0,0.26564542]
[1673633048899,0.137,19312.0,19308.0,0.26964542]
[1673633049162,0.29890494,19311.0,19308.0,0.26564542]
[1673633049409,0.54775649,19310.0,19308.0,0.26564542]
[1673633049670,0.4894,19309.0,19308.0,0.26564542]
[1673633049914,0.4894,19309.0,19308.0,0.26545542]
[1673633049915,0.4979,19309.0,19308.0,0.26545542]
[1673633050159,0.4979,19309.0,19308.0,0.26945542]
[1673633050403,0.4979,19309.0,19308.0,0.26545542]
[1673633050658,1.70726685,19309.0,19308.0,0.00400542]
[1673633050898,2.54859095,19309.0,19308.0,0.00400542]
[1673633051157,4.12897695,19309.0,19308.0,5.42e-06]
[1673633051432,4.12897695,19309.0,19306.0,0.00545542]
[1673633051433,4.78224559,19309.0,19306.0,0.00545542]
[1673633051677,0.3682,19307.0,19306.0,0.00545542]
[1673633051930,1.19388006,19307.0,19306.0,0.00545542]
[1673633052180,0.1979,19307.0,19306.0,0.00571549]
[1673633052421,0.4085,19307.0,19306.0,0.00545542]
[1673633052664,0.4035,19307.0,19306.0,0.00545542]
[1673633052911,0.46286,19307.0,19306.0,0.00545542]
[1673633053451,1.72507751,19307.0,19306.0,0.00545542]
[1673633053699,1.72507751,19307.0,19302.0,0.0051526]
[1673633053700,0.003,19306.0,19302.0,0.0051526]
[1673633053947,0.2676,19303.0,19302.0,0.0051526]
[1673633054197,1.07862601,19303.0,19302.0,0.0051526]
[1673633054453,1.37862601,19303.0,19302.0,0.0051526]
[1673633054705,0.3979,19303.0,19302.0,0.0051526]
[1673633054987,0.3085,19303.0,19302.0,0.0051526]
[1673633055242,0.4445,19303.0,19302.0,0.0081526]
[1673633056228,0.910748,19303.0,19302.0,0.0081526]
[1673633057490,0.610748,19303.0,19302.0,0.2681526]
[1673633057988,1.076996,19303.0,19302.0,0.2681526]
[1673633058507,1.60285436,19303.0,19302.0,0.2681526]
[1673633058749,1.53111838,19303.0,19302.0,0.2681526]
[1673633058996,1.176996,19303.0,19302.0,0.2681526]
[1673633060250,1.476996,19303.0,19302.0,0.2681526]
[1673633060983,1.376996,19303.0,19302.0,0.2681526]
[1673633063508,1.476996,19303.0,19302.0,0.2681526]
[1673633064012,1.376996,19303.0,19302.0,0.2681526]
[1673633066010,0.136,19303.0,19302.0,0.26837775]
[1673633066743,0.136,19303.0,19302.0,0.2681526]
[1673633066988,0.136,19303.0,19302.0,0.26837775]
[1673633067238,0.136,19303.0,19302.0,0.2681526]
[1673633067484,0.1962227,19303.0,19302.0,0.2681526]
[1673633067743,0.4962227,19303.0,19302.0,0.2681526]
[1673633067998,0.436,19303.0,19302.0,0.2681526]
[1673633068493,0.136,19303.0,19302.0,0.2681526]
[1673633068740,0.02220571,19303.0,19302.0,0.2681526]
[1673633068982,0.02220571,19303.0,19302.0,0.26837775]
[1673633069743,0.02220571,19303.0,19302.0,0.2681526]
[1673633070017,0.95470171,19303.0,19302.0,0.2681526]
[1673633070275,1.26320171,19303.0,19302.0,0.2681526]
[1673633070493,1.26320171,19303.0,19298.0,1.192169]
[1673633070494,0.8529474,19300.0,19298.0,1.192169]
[1673633070782,1.06325234,19300.0,19298.0,1.192359]
[1673633071034,0.8529474,19300.0,19298.0,1.19245901]
[1673633071291,0.8529474,19300.0,19298.0,1.21242996]
[1673633071538,0.8529474,19300.0,19298.0,1.73061796]
[1673633071786,0.8529474,19300.0,19298.0,0.02519]
[1673633071787,1.06325234,19300.0,19298.0,0.02519]
[1673633072038,0.8529474,19300.0,19298.0,0.02519]
[1673633072300,0.8529474,19300.0,19298.0,0.02529001]
[1673633072547,0.8529474,19300.0,19298.0,0.02510001]
[1673633072797,0.93824214,19300.0,19298.0,0.025]
[1673633073045,0.8529474,19300.0,19298.0,0.025]
[1673633073797,0.8529474,19300.0,19298.0,0.02564682]
[1673633074779,0.8529474,19300.0,19299.0,0.49963104]
[1673633075031,0.1126925,19300.0,19299.0,1.34230004]
[1673633075287,0.1126925,19300.0,19299.0,1.36083]
[1673633075547,0.1126925,19300.0,19299.0,1.036322]
[1673633076532,0.1566925,19300.0,19299.0,1.038322]
[1673633077049,0.78150444,19300.0,19299.0,0.002]
[1673633077303,0.8711995,19300.0,19299.0,0.002]
[1673633077569,1.3857065,19300.0,19299.0,0.002]
[1673633077819,1.2857065,19300.0,19299.0,0.002]
[1673633078068,1.15572785,19300.0,19299.0,0.262]
[1673633078316,1.45572785,19300.0,19299.0,0.262]
[1673633078559,0.9857065,19300.0,19299.0,0.262]
[1673633078812,1.2857065,19300.0,19299.0,0.262]
[1673633079570,0.9857065,19300.0,19299.0,0.26343093]
[1673633079822,1.63603279,19300.0,19299.0,0.262]
[1673633080110,1.43422785,19300.0,19299.0,0.262]
[1673633080348,2.70119088,19300.0,19299.0,0.262]
[1673633080879,2.85159088,19300.0,19299.0,0.26]
[1673633081121,2.90259088,19300.0,19299.0,0.268]
[1673633081365,2.36826874,19300.0,19299.0,0.268]
[1673633081867,2.90249831,19300.0,19299.0,0.268]
[1673633082118,2.80749831,19300.0,19299.0,0.26]
[1673633082621,3.16156831,19300.0,19299.0,0.268]
[1673633082869,3.61116831,19300.0,19299.0,0.1656004]
[1673633083123,4.59263776,19300.0,19299.0,0.1736004]
[1673633083364,4.59263776,19300.0,19299.0,0.1656004]
[1673633083365,3.76016831,19300.0,19299.0,0.1656004]
[1673633083619,0.7102,19299.0,19296.0,0.00648005]
[1673633083869,0.80371,19297.0,19296.0,0.00648005]
[1673633084130,3.20939411,19297.0,19296.0,0.00648005]
[1673633084384,6.20893852,19297.0,19295.0,5.6e-06]
[1673633084630,2.01092706,19296.0,19295.0,5.6e-06]
[1673633084876,5.82112359,19296.0,19287.0,0.00707756]
[1673633085125,0.8548,19294.0,19287.0,0.00707756]
[1673633085376,0.8548,19294.0,19290.0,0.00019]
[1673633085377,4.53782906,19293.0,19290.0,0.00019]
[1673633085649,4.59010913,19293.0,19290.0,0.00019]
[1673633085881,4.59010913,19293.0,19290.0,0.00742475]
[1673633086343,5.29010914,19293.0,19290.0,0.00742475]
[1673633086585,5.38510914,19293.0,19292.0,0.01448005]
[1673633086838,5.38510914,19293.0,19292.0,0.00648005]
[1673633086839,5.81345015,19293.0,19292.0,0.00648005]
[1673633087095,5.90845015,19293.0,19292.0,0.01448005]
[1673633087342,5.64928015,19293.0,19292.0,0.01448005]
[1673633089099,5.55428015,19293.0,19292.0,0.00648005]
[1673633089347,5.64928015,19293.0,19292.0,0.01448005]
[1673633090087,2.90481208,19293.0,19292.0,0.01448005]
[1673633090329,2.60591208,19293.0,19292.0,0.01448005]
[1673633090578,2.55363201,19293.0,19292.0,0.01448005]
[1673633091337,2.03897401,19293.0,19292.0,0.12561234]
[1673633091596,1.62431601,19293.0,19292.0,0.01448005]
[1673633091848,1.78674761,19293.0,19292.0,0.01448005]
[1673633092102,1.0867476,19293.0,19292.0,0.01448005]
[1673633092358,0.924316,19293.0,19292.0,0.01448005]
[1673633092623,0.1,19295.0,19292.0,0.31818234]
[1673633092624,0.414631,19295.0,19292.0,0.31818234]
[1673633092880,0.086,19293.0,19292.0,0.21571234]
[1673633093383,0.414631,19295.0,19292.0,0.20671234]
[1673633093624,0.414638,19294.0,19292.0,0.09558005]
[1673633093871,0.414638,19294.0,19292.0,0.00648005]
[1673633094114,0.929274,19294.0,19292.0,0.00648005]
[1673633094373,0.087,19293.0,19292.0,0.01548005]
[1673633094619,0.9307434,19293.0,19292.0,0.00648005]
[1673633094879,1.2307434,19293.0,19292.0,0.00648005]
[1673633095366,1.3307434,19293.0,19292.0,0.00648005]
[1673633095627,1.3307434,19293.0,19292.0,0.01548005]
[1673633095868,1.3307434,19293.0,19292.0,0.00648005]
[1673633096115,1.4177434,19293.0,19292.0,0.01548005]
[1673633097875,2.00346701,19293.0,19292.0,0.01548005]
[1673633098384,2.79228472,19293.0,19292.0,5e-08]
[1673633098632,3.38573978,19293.0,19292.0,5e-08]
[1673633099358,3.24461053,19293.0,19290.0,0.00723475]
[1673633099607,0.1506,19291.0,19290.0,0.00723475]
[1673633099864,2.64099836,19291.0,19290.0,0.00723475]
[1673633100113,3.77261113,19291.0,19290.0,0.00723475]
[1673633100361,4.23231113,19291.0,19290.0,0.00709141]
[1673633100612,4.64342964,19291.0,19290.0,0.00709141]
[1673633100877,5.47942965,19291.0,19290.0,0.00709141]
[1673633101383,0.86823233,19289.0,19287.0,0.00707756]
[1673633101655,4.11761029,19288.0,19287.0,0.00707756]
[1673633101884,3.9616373,19288.0,19287.0,0.00707756]
[1673633102130,3.8110373,19288.0,19287.0,0.00707756]
[1673633102383,3.77834332,19288.0,19287.0,0.00707756]
[1673633102888,3.91534332,19288.0,19287.0,0.00707756]
[1673633103135,3.77834332,19288.0,19287.0,0.00707756]
[1673633103382,4.92848826,19288.0,19287.0,0.00707756]
[1673633103645,1.7088,19287.0,19286.0,0.00723475]
[1673633103899,3.97425802,19287.0,19286.0,0.00723475]
[1673633104172,3.57376685,19287.0,19286.0,0.00723475]
[1673633104410,3.46920671,19287.0,19286.0,0.00723475]
[1673633104690,3.52531222,19287.0,19286.0,0.00723475]
[1673633104900,3.87849585,19287.0,19286.0,0.00723475]
[1673633105145,4.00449585,19287.0,19286.0,0.00723475]
[1673633105391,3.07058222,19287.0,19286.0,0.00723475]
[1673633105649,2.92226087,19287.0,19286.0,0.00723475]